[Event "*** Titled Tuesday Blitz"]
[Site "Chess.com"]
[Date "2019.12.03"]
[Round "3"]
[White "Sanan_Sjugirov"]
[Black "wnstop"]
[Result "1/2-1/2"]
[WhiteElo "2905"]
[BlackElo "2672"]
[TimeControl "180+2"]
[EndTime "13:40:21 PST"]
[Termination "Game drawn by repetition"]

1. d4 {[%clk 0:03:01.9]} 1... Nf6 {[%clk 0:03:01]} 2. c4 {[%clk 0:03:02.7]} 2...
g6 {[%clk 0:03:02.3]} 3. Nc3 {[%clk 0:03:03.2]} 3... Bg7 {[%clk 0:03:03.6]} 4.
e4 {[%clk 0:03:03.9]} 4... d6 {[%clk 0:03:04.8]} 5. f3 {[%clk 0:03:04.5]} 5...
O-O {[%clk 0:03:04.7]} 6. Nge2 {[%clk 0:03:05.5]} 6... Nc6 {[%clk 0:03:05.6]} 7.
Be3 {[%clk 0:03:06]} 7... a6 {[%clk 0:03:06.8]} 8. Qd2 {[%clk 0:03:07]} 8... Na5
{[%clk 0:03:06.2]} 9. Ng3 {[%clk 0:03:06.2]} 9... b5 {[%clk 0:03:02.1]} 10. h4
{[%clk 0:03:07]} 10... h5 {[%clk 0:03:01.1]} 11. Bh6 {[%clk 0:03:03.5]} 11... e5
{[%clk 0:02:57.1]} 12. Bxg7 {[%clk 0:03:02.4]} 12... Kxg7 {[%clk 0:02:57.7]} 13.
O-O-O {[%clk 0:02:57.9]} 13... b4 {[%clk 0:02:28.6]} 14. Nd5 {[%clk 0:02:54.4]}
14... c5 {[%clk 0:02:27.3]} 15. dxe5 {[%clk 0:02:50.8]} 15... dxe5 {[%clk
0:02:26.4]} 16. Qg5 {[%clk 0:02:40.8]} 16... Nxd5 {[%clk 0:01:55.4]} 17. Qxe5+
{[%clk 0:02:18.5]} 17... Qf6 {[%clk 0:01:42.6]} 18. Rxd5 {[%clk 0:02:14.7]}
18... Qxe5 {[%clk 0:01:22.9]} 19. Rxe5 {[%clk 0:02:16.6]} 19... Nb7 {[%clk
0:01:24.2]} 20. Re7 {[%clk 0:02:16.1]} 20... Rb8 {[%clk 0:00:57.6]} 21. Be2
{[%clk 0:02:11.8]} 21... Be6 {[%clk 0:00:58.1]} 22. Rd1 {[%clk 0:02:10]} 22...
Na5 {[%clk 0:00:58.1]} 23. Rc7 {[%clk 0:01:04.9]} 23... Rfc8 {[%clk 0:00:47.4]}
24. Rxc8 {[%clk 0:01:05.9]} 24... Rxc8 {[%clk 0:00:49.3]} 25. b3 {[%clk
0:01:07.2]} 25... Nc6 {[%clk 0:00:50]} 26. Rd6 {[%clk 0:01:00.5]} 26... Kf6
{[%clk 0:00:50.5]} 27. f4 {[%clk 0:01:01.7]} 27... Ke7 {[%clk 0:00:51.3]} 28. e5
{[%clk 0:01:02.4]} 28... a5 {[%clk 0:00:36.8]} 29. Ne4 {[%clk 0:00:56.1]} 29...
Nd4 {[%clk 0:00:33.3]} 30. Bd1 {[%clk 0:00:48.9]} 30... a4 {[%clk 0:00:25.1]}
31. Ra6 {[%clk 0:00:48.8]} 31... axb3 {[%clk 0:00:25.6]} 32. axb3 {[%clk
0:00:50.7]} 32... Bg4 {[%clk 0:00:16.8]} 33. Ra7+ {[%clk 0:00:42.9]} 33... Kf8
{[%clk 0:00:15.4]} 34. Nd6 {[%clk 0:00:39.7]} 34... Rd8 {[%clk 0:00:16.1]} 35.
Bxg4 {[%clk 0:00:31.5]} 35... hxg4 {[%clk 0:00:16.4]} 36. Kb2 {[%clk 0:00:33.1]}
36... Kg8 {[%clk 0:00:06.4]} 37. Rc7 {[%clk 0:00:27.2]} 37... Ne6 {[%clk
0:00:05.5]} 38. Ra7 {[%clk 0:00:16.5]} 38... Nxf4 {[%clk 0:00:06.7]} 39. g3
{[%clk 0:00:09.9]} 39... Nd3+ {[%clk 0:00:07.5]} 40. Kc2 {[%clk 0:00:11.3]}
40... Nxe5 {[%clk 0:00:09.4]} 41. Ne4 {[%clk 0:00:12.8]} 41... Nc6 {[%clk
0:00:07.2]} 42. Rc7 {[%clk 0:00:11.9]} 42... Nd4+ {[%clk 0:00:08.6]} 43. Kb2
{[%clk 0:00:13.5]} 43... Ne6 {[%clk 0:00:10.1]} 44. Ra7 {[%clk 0:00:14.4]} 44...
Rd4 {[%clk 0:00:10.7]} 45. Nf6+ {[%clk 0:00:15.6]} 45... Kg7 {[%clk 0:00:11.4]}
46. Ne8+ {[%clk 0:00:17.2]} 46... Kf8 {[%clk 0:00:12.6]} 47. Nf6 {[%clk
0:00:19.1]} 47... Rd2+ {[%clk 0:00:13.3]} 48. Kc1 {[%clk 0:00:20.3]} 48... Rd3
{[%clk 0:00:14.5]} 49. Nxg4 {[%clk 0:00:21.6]} 49... Rc3+ {[%clk 0:00:05.8]} 50.
Kd2 {[%clk 0:00:22.6]} 50... Nd4 {[%clk 0:00:06.4]} 51. Ne5 {[%clk 0:00:22.6]}
51... Nf3+ {[%clk 0:00:07]} 52. Nxf3 {[%clk 0:00:23.6]} 52... Rxf3 {[%clk
0:00:08.9]} 53. g4 {[%clk 0:00:23.9]} 53... Rxb3 {[%clk 0:00:09.3]} 54. Rc7
{[%clk 0:00:24.8]} 54... Rg3 {[%clk 0:00:06.5]} 55. g5 {[%clk 0:00:25]} 55...
Rg4 {[%clk 0:00:06.9]} 56. Rxc5 {[%clk 0:00:26.4]} 56... Rxh4 {[%clk 0:00:08.3]}
57. Kd3 {[%clk 0:00:22.4]} 57... Rh3+ {[%clk 0:00:09.2]} 58. Kd4 {[%clk
0:00:23.7]} 58... Ke7 {[%clk 0:00:09.9]} 59. Rc7+ {[%clk 0:00:24]} 59... Ke6
{[%clk 0:00:10.7]} 60. Rb7 {[%clk 0:00:22.5]} 60... Rh4+ {[%clk 0:00:07.6]} 61.
Kc5 {[%clk 0:00:22.7]} 61... Rg4 {[%clk 0:00:08.5]} 62. Rb6+ {[%clk 0:00:23.1]}
62... Ke7 {[%clk 0:00:08.7]} 63. Rb7+ {[%clk 0:00:23.7]} 63... Ke6 {[%clk
0:00:09.4]} 64. Rb6+ {[%clk 0:00:24.7]} 64... Ke7 {[%clk 0:00:10.6]} 65. Rb7+
{[%clk 0:00:26.1]} 65... Ke6 {[%clk 0:00:11.9]} 1/2-1/2

[Event "*** Titled Tuesday Blitz"]
[Site "Chess.com"]
[Date "2019.12.03"]
[Round "3"]
[White "maciek_92"]
[Black "Filip_Covic"]
[Result "1-0"]
[WhiteElo "2773"]
[BlackElo "2451"]
[TimeControl "180+2"]
[EndTime "13:40:22 PST"]
[Termination "maciek_92 won on time"]

1. e4 {[%clk 0:03:01.9]} 1... e6 {[%clk 0:02:54.9]} 2. d4 {[%clk 0:03:03]} 2...
d5 {[%clk 0:02:55]} 3. Nd2 {[%clk 0:03:04.5]} 3... Nc6 {[%clk 0:02:51.5]} 4.
Ngf3 {[%clk 0:03:05]} 4... Nf6 {[%clk 0:02:50.4]} 5. e5 {[%clk 0:03:06.5]} 5...
Nd7 {[%clk 0:02:51.3]} 6. Bd3 {[%clk 0:03:08]} 6... Nb4 {[%clk 0:02:48.2]} 7.
Be2 {[%clk 0:03:08.9]} 7... c5 {[%clk 0:02:49.2]} 8. c3 {[%clk 0:03:09.8]} 8...
Nc6 {[%clk 0:02:50.1]} 9. Bd3 {[%clk 0:03:11.3]} 9... g5 {[%clk 0:02:43.6]} 10.
Nb3 {[%clk 0:03:11.7]} 10... c4 {[%clk 0:02:38.4]} 11. Nxg5 {[%clk 0:03:12.4]}
11... Qe7 {[%clk 0:01:34.1]} 12. Be2 {[%clk 0:03:13.1]} 12... cxb3 {[%clk
0:01:16.7]} 13. Bh5 {[%clk 0:03:13.9]} 13... Nd8 {[%clk 0:01:14.9]} 14. axb3
{[%clk 0:03:00.2]} 14... h6 {[%clk 0:01:02.9]} 15. Nf3 {[%clk 0:03:00.8]} 15...
Nb6 {[%clk 0:00:58.7]} 16. O-O {[%clk 0:02:46]} 16... Rg8 {[%clk 0:00:58.1]} 17.
Qd3 {[%clk 0:02:27.1]} 17... Bg7 {[%clk 0:00:56.4]} 18. Qh7 {[%clk 0:02:23.7]}
18... Qf8 {[%clk 0:00:53.2]} 19. Be3 {[%clk 0:02:17.3]} 19... Bd7 {[%clk
0:00:51.5]} 20. Rfc1 {[%clk 0:02:14.7]} 20... Bb5 {[%clk 0:00:43.6]} 21. Nd2
{[%clk 0:02:09.4]} 21... a6 {[%clk 0:00:39.3]} 22. c4 {[%clk 0:02:09.9]} 22...
dxc4 {[%clk 0:00:40.2]} 23. bxc4 {[%clk 0:02:11]} 23... Bc6 {[%clk 0:00:38.8]}
24. d5 {[%clk 0:02:10.4]} 24... Nxd5 {[%clk 0:00:35.6]} 25. cxd5 {[%clk
0:02:11.2]} 25... Bxd5 {[%clk 0:00:34.9]} 26. Bc5 {[%clk 0:02:06.8]} 26... Rh8
{[%clk 0:00:29.7]} 27. Qd3 {[%clk 0:01:45.8]} 27... Qg8 {[%clk 0:00:28.6]} 28.
Bf3 {[%clk 0:01:47.1]} 28... Qh7 {[%clk 0:00:24.8]} 29. Be4 {[%clk 0:01:39]}
29... Bxe4 {[%clk 0:00:23.4]} 30. Nxe4 {[%clk 0:01:40.9]} 30... Bxe5 {[%clk
0:00:21.4]} 31. Bd6 {[%clk 0:01:28.6]} 31... f5 {[%clk 0:00:19.1]} 32. Bxe5
{[%clk 0:01:25.8]} 32... fxe4 {[%clk 0:00:20.1]} 33. Qd6 {[%clk 0:01:25.9]}
33... Rf8 {[%clk 0:00:18.9]} 34. Rc7 {[%clk 0:01:23.2]} 34... Rf7 {[%clk
0:00:17.7]} 35. Rac1 {[%clk 0:01:24.4]} 35... Rd7 {[%clk 0:00:15.4]} 36. Qb6
{[%clk 0:00:41]} 36... e3 {[%clk 0:00:13.9]} 37. Qxe3 {[%clk 0:00:40.1]} 37...
Rxc7 {[%clk 0:00:11.9]} 38. Rxc7 {[%clk 0:00:38.2]} 38... Qb1+ {[%clk
0:00:13.4]} 39. Rc1 {[%clk 0:00:39.4]} 39... Qh7 {[%clk 0:00:12.8]} 40. Bf6
{[%clk 0:00:31]} 40... Qg6 {[%clk 0:00:11.2]} 41. Bh4 {[%clk 0:00:28.8]} 41...
Nc6 {[%clk 0:00:10.2]} 42. h3 {[%clk 0:00:27.5]} 42... Qf5 {[%clk 0:00:05.9]}
43. Qxh6 {[%clk 0:00:26.5]} 43... Kf7 {[%clk 0:00:03.9]} 44. Rd1 {[%clk
0:00:25.4]} 44... Rg8 {[%clk 0:00:05.2]} 45. Rd7+ {[%clk 0:00:19.5]} 45... Ke8
{[%clk 0:00:06]} 46. Rg7 {[%clk 0:00:20.9]} 46... Rxg7 {[%clk 0:00:05.1]} 47.
Qxg7 {[%clk 0:00:22.8]} 47... Qb1+ {[%clk 0:00:06.1]} 48. Kh2 {[%clk 0:00:23.5]}
48... Qf5 {[%clk 0:00:08]} 49. Qxb7 {[%clk 0:00:22.1]} 49... Qe5+ {[%clk
0:00:09.2]} 50. Bg3 {[%clk 0:00:23]} 50... Qb5 {[%clk 0:00:08.5]} 51. Qxb5
{[%clk 0:00:20]} 51... axb5 {[%clk 0:00:10.4]} 52. Bf4 {[%clk 0:00:19.8]} 52...
Na5 {[%clk 0:00:11.3]} 53. Be5 {[%clk 0:00:19.7]} 53... Nc4 {[%clk 0:00:12.7]}
54. Bc3 {[%clk 0:00:21.1]} 54... Kf7 {[%clk 0:00:14.2]} 55. g4 {[%clk
0:00:22.2]} 55... Nd6 {[%clk 0:00:14.5]} 56. f3 {[%clk 0:00:22.2]} 56... Nc4
{[%clk 0:00:15.3]} 57. Kg3 {[%clk 0:00:23.6]} 57... b4 {[%clk 0:00:15.2]} 58.
Bxb4 {[%clk 0:00:18.5]} 58... Nxb2 {[%clk 0:00:16]} 59. Bc3 {[%clk 0:00:19.4]}
59... Nd3 {[%clk 0:00:16.2]} 60. f4 {[%clk 0:00:18.2]} 60... Nc5 {[%clk
0:00:15.8]} 61. Kf3 {[%clk 0:00:19.8]} 61... Kg6 {[%clk 0:00:16]} 62. h4 {[%clk
0:00:20.5]} 62... Nd3 {[%clk 0:00:15.5]} 63. h5+ {[%clk 0:00:21.2]} 63... Kh6
{[%clk 0:00:16.1]} 64. Bd4 {[%clk 0:00:21.2]} 64... Ne1+ {[%clk 0:00:11]} 65.
Ke4 {[%clk 0:00:20.4]} 65... Ng2 {[%clk 0:00:06.3]} 66. Bf2 {[%clk 0:00:19.7]}
66... e5 {[%clk 0:00:03.5]} 67. Kxe5 {[%clk 0:00:20.9]} 1-0

[Event "*** Titled Tuesday Blitz"]
[Site "Chess.com"]
[Date "2019.12.03"]
[Round "3"]
[White "LawrenceTrent"]
[Black "marianokar"]
[Result "1-0"]
[WhiteElo "2667"]
[BlackElo "2408"]
[TimeControl "180+2"]
[EndTime "13:40:30 PST"]
[Termination "LawrenceTrent won by resignation"]

1. e4 {[%clk 0:03:01.9]} 1... e5 {[%clk 0:02:58.9]} 2. Nf3 {[%clk 0:03:02.8]}
2... Nc6 {[%clk 0:03:00.3]} 3. Bc4 {[%clk 0:03:02.8]} 3... Bc5 {[%clk
0:02:58.8]} 4. c3 {[%clk 0:03:03.8]} 4... Nf6 {[%clk 0:02:58.6]} 5. d4 {[%clk
0:03:04.5]} 5... exd4 {[%clk 0:02:58.9]} 6. e5 {[%clk 0:03:05.9]} 6... d5 {[%clk
0:02:59.9]} 7. Bb5 {[%clk 0:03:06.5]} 7... Ne4 {[%clk 0:03:00.6]} 8. cxd4 {[%clk
0:03:07.7]} 8... Bb4+ {[%clk 0:03:01.5]} 9. Nbd2 {[%clk 0:03:08.7]} 9... O-O
{[%clk 0:02:48.5]} 10. O-O {[%clk 0:03:07.7]} 10... Nxd2 {[%clk 0:02:29.5]} 11.
Bxd2 {[%clk 0:03:04.8]} 11... Bxd2 {[%clk 0:02:25.4]} 12. Qxd2 {[%clk
0:03:05.4]} 12... Ne7 {[%clk 0:02:09.3]} 13. Bd3 {[%clk 0:02:27.1]} 13... Bf5
{[%clk 0:02:02.4]} 14. Rac1 {[%clk 0:02:26.2]} 14... c6 {[%clk 0:02:02.3]} 15.
Rfe1 {[%clk 0:00:36.8]} 15... Qd7 {[%clk 0:01:54.2]} 16. h3 {[%clk 0:00:37.3]}
16... h6 {[%clk 0:01:50.4]} 17. b4 {[%clk 0:00:38.2]} 17... a6 {[%clk
0:01:40.5]} 18. a4 {[%clk 0:00:38.9]} 18... Rfe8 {[%clk 0:01:34.4]} 19. a5
{[%clk 0:00:37.5]} 19... Ng6 {[%clk 0:01:26.9]} 20. Kh2 {[%clk 0:00:34.3]} 20...
Re7 {[%clk 0:01:25]} 21. Qc2 {[%clk 0:00:33.5]} 21... Bxd3 {[%clk 0:01:24.7]}
22. Qxd3 {[%clk 0:00:35.4]} 22... Rae8 {[%clk 0:01:25.2]} 23. g3 {[%clk
0:00:35.8]} 23... Nf8 {[%clk 0:01:11.3]} 24. Nh4 {[%clk 0:00:34.5]} 24... g6
{[%clk 0:00:57.4]} 25. f4 {[%clk 0:00:35.4]} 25... Nh7 {[%clk 0:00:38.5]} 26. f5
{[%clk 0:00:34]} 26... g5 {[%clk 0:00:35.6]} 27. f6 {[%clk 0:00:34.7]} 27...
Nxf6 {[%clk 0:00:36]} 28. Nf5 {[%clk 0:00:34]} 28... Ne4 {[%clk 0:00:31.6]} 29.
Nxe7+ {[%clk 0:00:34.6]} 29... Rxe7 {[%clk 0:00:31.4]} 30. Rf1 {[%clk
0:00:35.4]} 30... Re6 {[%clk 0:00:24.9]} 31. Rc2 {[%clk 0:00:32.3]} 31... Qe7
{[%clk 0:00:24.2]} 32. Qf3 {[%clk 0:00:32.6]} 32... Kg7 {[%clk 0:00:23.5]} 33.
Qh5 {[%clk 0:00:33.1]} 33... f5 {[%clk 0:00:21.2]} 34. Rxf5 {[%clk 0:00:32.5]}
34... Qe8 {[%clk 0:00:15]} 35. Qxe8 {[%clk 0:00:28.7]} 35... Rxe8 {[%clk
0:00:16.9]} 36. Rc1 {[%clk 0:00:29.9]} 36... Re7 {[%clk 0:00:14.9]} 37. Rcf1
{[%clk 0:00:30.6]} 37... Nc3 {[%clk 0:00:12]} 38. Rf6 {[%clk 0:00:29.1]} 38...
Nb5 {[%clk 0:00:12.3]} 39. e6 {[%clk 0:00:27.3]} 39... Nxd4 {[%clk 0:00:11.6]}
40. Rf7+ {[%clk 0:00:28.5]} 40... Rxf7 {[%clk 0:00:12.5]} 41. Rxf7+ {[%clk
0:00:25.2]} 41... Kg6 {[%clk 0:00:12.9]} 42. Rxb7 {[%clk 0:00:27.1]} 42... Nxe6
{[%clk 0:00:13.9]} 43. Rb6 {[%clk 0:00:29]} 43... Nd8 {[%clk 0:00:11.7]} 44.
Rxa6 {[%clk 0:00:30.2]} 44... Kf6 {[%clk 0:00:12.9]} 45. Rb6 {[%clk 0:00:31.1]}
45... d4 {[%clk 0:00:13]} 46. a6 {[%clk 0:00:32.5]} 46... d3 {[%clk 0:00:13.8]}
47. a7 {[%clk 0:00:33.6]} 47... d2 {[%clk 0:00:15]} 48. a8=Q {[%clk 0:00:30.7]}
48... d1=Q {[%clk 0:00:15.5]} 49. Qa2 {[%clk 0:00:31.7]} 49... Qd6 {[%clk
0:00:13.1]} 50. Qf2+ {[%clk 0:00:28.5]} 50... Kg7 {[%clk 0:00:12.4]} 51. b5
{[%clk 0:00:29.5]} 51... h5 {[%clk 0:00:07.9]} 52. bxc6 {[%clk 0:00:28.9]} 52...
h4 {[%clk 0:00:08.9]} 53. Rb3 {[%clk 0:00:17.7]} 53... Nxc6 {[%clk 0:00:07.9]}
54. Rf3 {[%clk 0:00:15.6]} 54... Ne5 {[%clk 0:00:06.9]} 55. Re3 {[%clk
0:00:12.5]} 55... Ng6 {[%clk 0:00:06]} 56. Kg2 {[%clk 0:00:10.1]} 56... hxg3
{[%clk 0:00:06.2]} 57. Rxg3 {[%clk 0:00:10]} 57... Nf4+ {[%clk 0:00:07.3]} 58.
Kh2 {[%clk 0:00:11.2]} 58... Kf6 {[%clk 0:00:08.2]} 59. Kh1 {[%clk 0:00:10.5]}
59... Qd1+ {[%clk 0:00:08]} 60. Rg1 {[%clk 0:00:11.5]} 60... Qd5+ {[%clk
0:00:09.4]} 61. Kh2 {[%clk 0:00:11.6]} 61... Qe5 {[%clk 0:00:11.1]} 62. h4
{[%clk 0:00:09.9]} 62... gxh4 {[%clk 0:00:06.6]} 63. Rg4 {[%clk 0:00:08.3]}
63... Kf5 {[%clk 0:00:05.9]} 64. Rxh4 {[%clk 0:00:09.8]} 64... Qe2 {[%clk
0:00:04.9]} 65. Rxf4+ {[%clk 0:00:10.6]} 1-0

[Event "*** Titled Tuesday Blitz"]
[Site "Chess.com"]
[Date "2019.12.03"]
[Round "3"]
[White "Nancy11111"]
[Black "Elshan1985"]
[Result "1/2-1/2"]
[WhiteElo "2364"]
[BlackElo "2724"]
[TimeControl "180+2"]
[EndTime "13:41:02 PST"]
[Termination "Game drawn by repetition"]

1. d4 {[%clk 0:03:01.9]} 1... Nf6 {[%clk 0:02:59.7]} 2. Nf3 {[%clk 0:03:01.1]}
2... e6 {[%clk 0:03:00.5]} 3. g3 {[%clk 0:03:01.5]} 3... b5 {[%clk 0:03:00.6]}
4. Bg2 {[%clk 0:03:01.9]} 4... Bb7 {[%clk 0:03:01.9]} 5. Nbd2 {[%clk 0:02:58.8]}
5... c5 {[%clk 0:03:03]} 6. e3 {[%clk 0:02:57.8]} 6... cxd4 {[%clk 0:03:01.4]}
7. exd4 {[%clk 0:02:58.4]} 7... Be7 {[%clk 0:03:03]} 8. O-O {[%clk 0:02:58]}
8... O-O {[%clk 0:03:04.6]} 9. c3 {[%clk 0:02:54.4]} 9... d6 {[%clk 0:03:02.3]}
10. b3 {[%clk 0:02:54.9]} 10... Nbd7 {[%clk 0:03:01.5]} 11. Bb2 {[%clk
0:02:56.2]} 11... Rc8 {[%clk 0:02:47.3]} 12. Rc1 {[%clk 0:02:53]} 12... d5
{[%clk 0:02:43.3]} 13. Re1 {[%clk 0:02:50.7]} 13... a6 {[%clk 0:02:42.6]} 14.
Ne5 {[%clk 0:02:47.9]} 14... Nxe5 {[%clk 0:02:43.7]} 15. dxe5 {[%clk 0:02:48.3]}
15... Nd7 {[%clk 0:02:44.8]} 16. c4 {[%clk 0:02:32]} 16... bxc4 {[%clk
0:02:42.4]} 17. bxc4 {[%clk 0:02:33]} 17... Nc5 {[%clk 0:02:39]} 18. Nb3 {[%clk
0:02:04.9]} 18... dxc4 {[%clk 0:02:23.1]} 19. Nxc5 {[%clk 0:01:51.7]} 19... Bxg2
{[%clk 0:02:19.9]} 20. Kxg2 {[%clk 0:01:24.8]} 20... Bxc5 {[%clk 0:01:42.3]} 21.
Rxc4 {[%clk 0:01:13]} 21... Qa5 {[%clk 0:01:26.9]} 22. Qe2 {[%clk 0:00:34.8]}
22... Ba7 {[%clk 0:00:52]} 23. Rec1 {[%clk 0:00:34.2]} 23... Rxc4 {[%clk
0:00:52]} 24. Qxc4 {[%clk 0:00:30.2]} 24... Bxf2 {[%clk 0:00:43.4]} 25. Kxf2
{[%clk 0:00:16.2]} 25... Qd2+ {[%clk 0:00:44.4]} 26. Qe2 {[%clk 0:00:17.1]}
26... Qd5 {[%clk 0:00:45.1]} 27. Rd1 {[%clk 0:00:14.5]} 27... Qxa2 {[%clk
0:00:45.8]} 28. Ra1 {[%clk 0:00:12.6]} 28... Qd5 {[%clk 0:00:44.3]} 29. Rxa6
{[%clk 0:00:13.3]} 29... Qh1 {[%clk 0:00:45.2]} 30. Ke3 {[%clk 0:00:11.2]} 30...
h6 {[%clk 0:00:35.3]} 31. Bd4 {[%clk 0:00:11]} 31... Rd8 {[%clk 0:00:33.6]} 32.
Ra1 {[%clk 0:00:07.9]} 32... Qd5 {[%clk 0:00:30.1]} 33. Rd1 {[%clk 0:00:08.8]}
33... Qa5 {[%clk 0:00:25.9]} 34. Kf2 {[%clk 0:00:09.8]} 34... Rc8 {[%clk
0:00:24.1]} 35. Rd2 {[%clk 0:00:09.3]} 35... Qa4 {[%clk 0:00:23]} 36. Kg2 {[%clk
0:00:08]} 36... Rd8 {[%clk 0:00:20.2]} 37. Qe4 {[%clk 0:00:08.8]} 37... Rd5
{[%clk 0:00:19.4]} 38. Kf3 {[%clk 0:00:09.4]} 38... Qb3+ {[%clk 0:00:17.7]} 39.
Rd3 {[%clk 0:00:05.9]} 39... Qa2 {[%clk 0:00:15.6]} 40. Be3 {[%clk 0:00:05.7]}
40... Qxh2 {[%clk 0:00:12.2]} 41. Rxd5 {[%clk 0:00:06]} 41... exd5 {[%clk
0:00:13.8]} 42. Qg4 {[%clk 0:00:04.7]} 42... Qh1+ {[%clk 0:00:13.1]} 43. Kf2
{[%clk 0:00:05.4]} 43... h5 {[%clk 0:00:09.1]} 44. Qc8+ {[%clk 0:00:05.4]} 44...
Kh7 {[%clk 0:00:10.4]} 45. Qc2+ {[%clk 0:00:06.4]} 45... Kg8 {[%clk 0:00:11.2]}
46. Qc8+ {[%clk 0:00:07.3]} 46... Kh7 {[%clk 0:00:12.5]} 47. Qf5+ {[%clk
0:00:08.6]} 47... Kg8 {[%clk 0:00:13.5]} 48. e6 {[%clk 0:00:09.7]} 48... Qh2+
{[%clk 0:00:11.6]} 49. Kf1 {[%clk 0:00:11]} 49... Qh1+ {[%clk 0:00:12.9]} 50.
Ke2 {[%clk 0:00:11.2]} 50... Qh2+ {[%clk 0:00:10.3]} 51. Bf2 {[%clk 0:00:12.4]}
51... fxe6 {[%clk 0:00:10.9]} 52. Qxe6+ {[%clk 0:00:13.3]} 52... Kh7 {[%clk
0:00:12.5]} 53. Qxd5 {[%clk 0:00:13.8]} 53... Qh3 {[%clk 0:00:13.9]} 54. Qe4+
{[%clk 0:00:14.6]} 54... Kg8 {[%clk 0:00:15.2]} 55. Qe8+ {[%clk 0:00:15.2]}
55... Kh7 {[%clk 0:00:16]} 56. Qe4+ {[%clk 0:00:16.3]} 56... Kg8 {[%clk
0:00:17.3]} 57. Ke1 {[%clk 0:00:15.6]} 57... Qd7 {[%clk 0:00:14.4]} 58. Kf1
{[%clk 0:00:15.2]} 58... Qb5+ {[%clk 0:00:15.2]} 59. Kg2 {[%clk 0:00:16.1]}
59... Qg5 {[%clk 0:00:16.3]} 60. Be3 {[%clk 0:00:15.5]} 60... Qb5 {[%clk
0:00:14.6]} 61. Qe6+ {[%clk 0:00:15]} 61... Kh7 {[%clk 0:00:15.4]} 62. Bf2
{[%clk 0:00:15.4]} 62... Qg5 {[%clk 0:00:15.4]} 63. Qe8 {[%clk 0:00:11.4]} 63...
Qf5 {[%clk 0:00:15.9]} 64. Qe7 {[%clk 0:00:09]} 64... Qg4 {[%clk 0:00:16.1]} 65.
Qe5 {[%clk 0:00:07.9]} 65... h4 {[%clk 0:00:15.8]} 66. Qe3 {[%clk 0:00:03.9]}
66... hxg3 {[%clk 0:00:16.8]} 67. Bxg3 {[%clk 0:00:05.2]} 67... Qf5 {[%clk
0:00:17.7]} 68. Qe2 {[%clk 0:00:04]} 68... Kg6 {[%clk 0:00:18.6]} 69. Qe8+
{[%clk 0:00:04.6]} 69... Qf7 {[%clk 0:00:19.3]} 70. Qe2 {[%clk 0:00:05.7]} 70...
Qd5+ {[%clk 0:00:20]} 71. Kh2 {[%clk 0:00:06.5]} 71... Qh5+ {[%clk 0:00:21.2]}
72. Qxh5+ {[%clk 0:00:07.3]} 72... Kxh5 {[%clk 0:00:23.1]} 73. Kg2 {[%clk
0:00:08.6]} 73... g5 {[%clk 0:00:25]} 74. Bb8 {[%clk 0:00:09.8]} 74... g4 {[%clk
0:00:26.9]} 75. Bg3 {[%clk 0:00:11]} 75... Kg6 {[%clk 0:00:27.8]} 76. Bf4 {[%clk
0:00:10.1]} 76... Kf5 {[%clk 0:00:29.7]} 77. Bg3 {[%clk 0:00:11]} 77... Ke4
{[%clk 0:00:30.7]} 78. Bh2 {[%clk 0:00:12]} 78... Kf5 {[%clk 0:00:32.1]} 79. Bg3
{[%clk 0:00:13.9]} 79... Kg6 {[%clk 0:00:33.6]} 80. Bh2 {[%clk 0:00:15.8]} 80...
Kg5 {[%clk 0:00:35.5]} 81. Bg3 {[%clk 0:00:17.7]} 81... Kf5 {[%clk 0:00:37]} 82.
Bh2 {[%clk 0:00:19.6]} 82... Ke4 {[%clk 0:00:38.6]} 83. Bg3 {[%clk 0:00:20.9]}
83... Kf5 {[%clk 0:00:40.5]} 84. Bh2 {[%clk 0:00:22.8]} 84... Ke4 {[%clk
0:00:41.5]} 85. Bg3 {[%clk 0:00:24.7]} 85... Kf5 {[%clk 0:00:42.9]} 1/2-1/2